[Event "Live Chess"]
[Site "Chess.com"]
[Date "2010.12.11"]
[Round "-"]
[White "patoplush"]
[Black "hipposcottimus"]
[Result "0-1"]
[CurrentPosition "r4rk1/ppp3p1/2n4p/2b1N3/8/2P3P1/PP2qP1P/5RK1 w - -"]
[Timezone "UTC"]
[ECO "C44"]
[ECOUrl "https://www.chess.com/openings/Ponziani-Opening-Jaenisch-Counterattack-4.d4-Nxe4"]
[UTCDate "2010.12.11"]
[UTCTime "00:16:43"]
[WhiteElo "1571"]
[BlackElo "1679"]
[TimeControl "60"]
[Termination "hipposcottimus won on time"]
[StartTime "00:16:43"]
[EndDate "2010.12.11"]
[EndTime "00:18:09"]
[Link "https://www.chess.com/game/live/76067712"]

1. e4 {[%clk 0:01:00]} 1... e5 {[%clk 0:01:00]} 2. Nf3 {[%clk 0:00:59]} 2... Nc6 {[%clk 0:00:59.6]} 3. c3 {[%clk 0:00:58.2]} 3... Nf6 {[%clk 0:00:58.8]} 4. d4 {[%clk 0:00:55.9]} 4... Nxe4 {[%clk 0:00:57.6]} 5. dxe5 {[%clk 0:00:55.4]} 5... d6 {[%clk 0:00:55.4]} 6. Bd3 {[%clk 0:00:54.4]} 6... f5 {[%clk 0:00:51.6]} 7. Qe2 {[%clk 0:00:52.5]} 7... dxe5 {[%clk 0:00:49.3]} 8. Bxe4 {[%clk 0:00:50.8]} 8... fxe4 {[%clk 0:00:49.2]} 9. Qxe4 {[%clk 0:00:50.2]} 9... Bd6 {[%clk 0:00:46.4]} 10. O-O {[%clk 0:00:48.6]} 10... O-O {[%clk 0:00:44.9]} 11. Nbd2 {[%clk 0:00:44.8]} 11... Bf5 {[%clk 0:00:44.5]} 12. Qe2 {[%clk 0:00:41.8]} 12... Qf6 {[%clk 0:00:44.1]} 13. Ne4 {[%clk 0:00:38.1]} 13... Qg6 {[%clk 0:00:43.1]} 14. Nfg5 {[%clk 0:00:35.5]} 14... Be7 {[%clk 0:00:41.2]} 15. Be3 {[%clk 0:00:27.2]} 15... h6 {[%clk 0:00:40.3]} 16. Nf3 {[%clk 0:00:25]} 16... Bh3 {[%clk 0:00:38.8]} 17. g3 {[%clk 0:00:20.5]} 17... Bxf1 {[%clk 0:00:37.9]} 18. Rxf1 {[%clk 0:00:19.6]} 18... Qxe4 {[%clk 0:00:37.4]} 19. Bc5 {[%clk 0:00:17.3]} 19... Qxe2 {[%clk 0:00:34.6]} 20. Nxe5 {[%clk 0:00:14.2]} 20... Bxc5 {[%clk 0:00:30.6]} 0-1

[Event "Live Chess"]
[Site "Chess.com"]
[Date "2010.12.10"]
[Round "-"]
[White "hipposcottimus"]
[Black "rooktoorook"]
[Result "0-1"]
[CurrentPosition "5rk1/6pp/3bpp2/1P6/Q4P2/3R4/5qPP/7K b - -"]
[Timezone "UTC"]
[ECO "B10"]
[ECOUrl "https://www.chess.com/openings/Caro-Kann-Defense-2.Nf3"]
[UTCDate "2010.12.10"]
[UTCTime "22:40:06"]
[WhiteElo "1673"]
[BlackElo "1452"]
[TimeControl "60"]
[Termination "rooktoorook won by resignation"]
[StartTime "22:40:06"]
[EndDate "2010.12.10"]
[EndTime "22:42:03"]
[Link "https://www.chess.com/game/live/76044604"]

1. e4 {[%clk 0:01:00]} 1... c6 {[%clk 0:01:00]} 2. Nf3 {[%clk 0:00:55]} 2... e6 {[%clk 0:00:59.5]} 3. Bc4 {[%clk 0:00:54]} 3... d5 {[%clk 0:00:58.8]} 4. exd5 {[%clk 0:00:52.6]} 4... cxd5 {[%clk 0:00:58.1]} 5. Bb5+ {[%clk 0:00:52.3]} 5... Nc6 {[%clk 0:00:57.4]} 6. d4 {[%clk 0:00:50]} 6... a6 {[%clk 0:00:56.4]} 7. Ba4 {[%clk 0:00:48.5]} 7... b5 {[%clk 0:00:55.5]} 8. Bb3 {[%clk 0:00:48.3]} 8... Qb6 {[%clk 0:00:52.9]} 9. O-O {[%clk 0:00:48]} 9... Be7 {[%clk 0:00:47.9]} 10. Be3 {[%clk 0:00:46.4]} 10... Nf6 {[%clk 0:00:46.5]} 11. Ne5 {[%clk 0:00:45.6]} 11... Qc7 {[%clk 0:00:43.2]} 12. c3 {[%clk 0:00:38.1]} 12... Nxe5 {[%clk 0:00:41.5]} 13. dxe5 {[%clk 0:00:36.1]} 13... Nd7 {[%clk 0:00:41.1]} 14. Bd4 {[%clk 0:00:34.9]} 14... Nxe5 {[%clk 0:00:39.9]} 15. Bxe5 {[%clk 0:00:32.5]} 15... Qxe5 {[%clk 0:00:39.1]} 16. f4 {[%clk 0:00:32.3]} 16... Qd6 {[%clk 0:00:37.2]} 17. Bc2 {[%clk 0:00:32]} 17... Bb7 {[%clk 0:00:35.7]} 18. b3 {[%clk 0:00:31.7]} 18... f6 {[%clk 0:00:33.4]} 19. c4 {[%clk 0:00:31.1]} 19... d4 {[%clk 0:00:31.8]} 20. cxb5 {[%clk 0:00:29.9]} 20... axb5 {[%clk 0:00:30]} 21. Bd3 {[%clk 0:00:28.9]} 21... Qc5 {[%clk 0:00:28.6]} 22. a4 {[%clk 0:00:27.3]} 22... bxa4 {[%clk 0:00:24.9]} 23. bxa4 {[%clk 0:00:27]} 23... Ba6 {[%clk 0:00:22.8]} 24. Bb5+ {[%clk 0:00:19.5]} 24... Bxb5 {[%clk 0:00:21.2]} 25. Na3 {[%clk 0:00:19.1]} 25... Ba6 {[%clk 0:00:18.4]} 26. Nb5 {[%clk 0:00:18.4]} 26... Bxb5 {[%clk 0:00:16.3]} 27. axb5 {[%clk 0:00:18.1]} 27... Rxa1 {[%clk 0:00:15.3]} 28. Qxa1 {[%clk 0:00:17.9]} 28... O-O {[%clk 0:00:14]} 29. Qa4 {[%clk 0:00:14.6]} 29... d3+ {[%clk 0:00:12.3]} 30. Kh1 {[%clk 0:00:12.9]} 30... Bd6 {[%clk 0:00:10.4]} 31. Rd1 {[%clk 0:00:12.5]} 31... Qf2 {[%clk 0:00:07.4]} 32. Rxd3 {[%clk 0:00:12]} 0-1

[Event "Live Chess"]
[Site "Chess.com"]
[Date "2010.12.10"]
[Round "-"]
[White "Delton1"]
[Black "hipposcottimus"]
[Result "1-0"]
[CurrentPosition "r1bq1Bk1/p2n1ppp/2p5/3pp3/3P4/2P5/PP2BPPP/RN1Q1RK1 b - -"]
[Timezone "UTC"]
[ECO "D02"]
[ECOUrl "https://www.chess.com/openings/London-System"]
[UTCDate "2010.12.10"]
[UTCTime "22:27:18"]
[WhiteElo "1413"]
[BlackElo "1432"]
[TimeControl "600"]
[Termination "Delton1 won by resignation"]
[StartTime "22:27:18"]
[EndDate "2010.12.10"]
[EndTime "22:28:39"]
[Link "https://www.chess.com/game/live/76041409"]

1. d4 {[%clk 0:10:00]} 1... d5 {[%clk 0:10:00]} 2. Nf3 {[%clk 0:09:58.7]} 2... Nf6 {[%clk 0:09:57.2]} 3. Bf4 {[%clk 0:09:57.5]} 3... e6 {[%clk 0:09:49.8]} 4. e3 {[%clk 0:09:56.4]} 4... c5 {[%clk 0:09:46.7]} 5. Be2 {[%clk 0:09:50.6]} 5... cxd4 {[%clk 0:09:45]} 6. exd4 {[%clk 0:09:47.8]} 6... Nc6 {[%clk 0:09:43]} 7. O-O {[%clk 0:09:45.6]} 7... Bd6 {[%clk 0:09:40.9]} 8. Ne5 {[%clk 0:09:42.8]} 8... O-O {[%clk 0:09:35.5]} 9. c3 {[%clk 0:09:41.6]} 9... Nd7 {[%clk 0:09:33.1]} 10. Nxc6 {[%clk 0:09:25.8]} 10... bxc6 {[%clk 0:09:32.4]} 11. Bxd6 {[%clk 0:09:23.5]} 11... e5 {[%clk 0:09:29.2]} 12. Bxf8 {[%clk 0:09:15.8]} 1-0

[Event "Live Chess"]
[Site "Chess.com"]
[Date "2010.12.10"]
[Round "-"]
[White "jordan_1"]
[Black "hipposcottimus"]
[Result "1-0"]
[CurrentPosition "r2r4/ppp1nkpp/8/2b5/Q3PpP1/B1P5/P1KNN1P1/R7 b - -"]
[Timezone "UTC"]
[ECO "B01"]
[ECOUrl "https://www.chess.com/openings/Scandinavian-Defense-Closed"]
[UTCDate "2010.12.10"]
[UTCTime "22:14:58"]
[WhiteElo "1508"]
[BlackElo "1685"]
[TimeControl "60"]
[Termination "jordan_1 won on time"]
[StartTime "22:14:58"]
[EndDate "2010.12.10"]
[EndTime "22:17:03"]
[Link "https://www.chess.com/game/live/76038186"]

1. Nc3 {[%clk 0:01:00]} 1... d5 {[%clk 0:01:00]} 2. e4 {[%clk 0:01:00]} 2... d4 {[%clk 0:00:59]} 3. Nce2 {[%clk 0:00:59.2]} 3... e5 {[%clk 0:00:57.7]} 4. d3 {[%clk 0:00:59.2]} 4... f5 {[%clk 0:00:56.3]} 5. f4 {[%clk 0:00:59.2]} 5... fxe4 {[%clk 0:00:54.3]} 6. dxe4 {[%clk 0:00:57.8]} 6... Bg4 {[%clk 0:00:50.2]} 7. h3 {[%clk 0:00:54.9]} 7... Qh4+ {[%clk 0:00:44.6]} 8. Kd2 {[%clk 0:00:51.3]} 8... exf4 {[%clk 0:00:35.2]} 9. hxg4 {[%clk 0:00:47.3]} 9... Qxh1 {[%clk 0:00:32.9]} 10. Nf3 {[%clk 0:00:43.8]} 10... Bb4+ {[%clk 0:00:25.8]} 11. c3 {[%clk 0:00:42.1]} 11... dxc3+ {[%clk 0:00:24.9]} 12. bxc3 {[%clk 0:00:41.2]} 12... Bc5 {[%clk 0:00:22.7]} 13. Qa4+ {[%clk 0:00:35.3]} 13... Nc6 {[%clk 0:00:20.2]} 14. Ned4 {[%clk 0:00:27.2]} 14... Qxf1 {[%clk 0:00:16.1]} 15. Nxc6 {[%clk 0:00:22.5]} 15... Qf2+ {[%clk 0:00:14.1]} 16. Kd3 {[%clk 0:00:14.9]} 16... Qe3+ {[%clk 0:00:12.1]} 17. Kc2 {[%clk 0:00:13.3]} 17... Qe2+ {[%clk 0:00:09.1]} 18. Nd2 {[%clk 0:00:11.7]} 18... Ne7 {[%clk 0:00:03.9]} 19. Nd4+ {[%clk 0:00:07.7]} 19... Kf7 {[%clk 0:00:01.8]} 20. Nxe2 {[%clk 0:00:06.8]} 20... Rhd8 {[%clk 0:00:00.3]} 21. Ba3 {[%clk 0:00:05.5]} 1-0

[Event "Live Chess"]
[Site "Chess.com"]
[Date "2010.12.10"]
[Round "-"]
[White "caze"]
[Black "hipposcottimus"]
[Result "0-1"]
[CurrentPosition "1R6/5p1p/p2r1pk1/3P3N/4p1r1/6P1/2P2P1P/1R4K1 w - -"]
[Timezone "UTC"]
[ECO "C23"]
[ECOUrl "https://www.chess.com/openings/Bishops-Opening-2...Nc6-3.d3-Nf6"]
[UTCDate "2010.12.10"]
[UTCTime "22:11:02"]
[WhiteElo "1413"]
[BlackElo "1685"]
[TimeControl "60"]
[Termination "hipposcottimus won on time"]
[StartTime "22:11:02"]
[EndDate "2010.12.10"]
[EndTime "22:13:15"]
[Link "https://www.chess.com/game/live/76037216"]

1. e4 {[%clk 0:01:00]} 1... e5 {[%clk 0:01:00]} 2. Bc4 {[%clk 0:00:59]} 2... Nc6 {[%clk 0:00:59.3]} 3. d3 {[%clk 0:00:58.3]} 3... Nf6 {[%clk 0:00:58.5]} 4. Bg5 {[%clk 0:00:57.2]} 4... d5 {[%clk 0:00:57.7]} 5. exd5 {[%clk 0:00:55.8]} 5... Na5 {[%clk 0:00:55.4]} 6. b3 {[%clk 0:00:53.6]} 6... Nxc4 {[%clk 0:00:54.6]} 7. bxc4 {[%clk 0:00:51.9]} 7... Qd6 {[%clk 0:00:54.3]} 8. Qe2 {[%clk 0:00:50.1]} 8... Be7 {[%clk 0:00:49.6]} 9. Nc3 {[%clk 0:00:48.6]} 9... a6 {[%clk 0:00:46.3]} 10. Nf3 {[%clk 0:00:46.7]} 10... Qb4 {[%clk 0:00:45.2]} 11. Qd2 {[%clk 0:00:44.5]} 11... Qb2 {[%clk 0:00:43.3]} 12. Rb1 {[%clk 0:00:43.1]} 12... Qa3 {[%clk 0:00:43]} 13. O-O {[%clk 0:00:41.7]} 13... Bb4 {[%clk 0:00:41.3]} 14. Rb3 {[%clk 0:00:40.2]} 14... Qa5 {[%clk 0:00:37.8]} 15. Bxf6 {[%clk 0:00:35]} 15... gxf6 {[%clk 0:00:31.6]} 16. Rfb1 {[%clk 0:00:31.8]} 16... Bxc3 {[%clk 0:00:29.3]} 17. Qxc3 {[%clk 0:00:30.9]} 17... Qxa2 {[%clk 0:00:28.9]} 18. d4 {[%clk 0:00:27.4]} 18... e4 {[%clk 0:00:26.4]} 19. Nh4 {[%clk 0:00:24]} 19... Qa4 {[%clk 0:00:22.6]} 20. Rb4 {[%clk 0:00:22.9]} 20... Qd7 {[%clk 0:00:22.2]} 21. d6 {[%clk 0:00:20.2]} 21... Qg4 {[%clk 0:00:21.5]} 22. g3 {[%clk 0:00:17]} 22... Qg5 {[%clk 0:00:20.8]} 23. c5 {[%clk 0:00:15.6]} 23... O-O {[%clk 0:00:18.2]} 24. d5 {[%clk 0:00:14.4]} 24... Kh8 {[%clk 0:00:17.6]} 25. Ng2 {[%clk 0:00:11.8]} 25... Rg8 {[%clk 0:00:17]} 26. Qe3 {[%clk 0:00:10.1]} 26... Bh3 {[%clk 0:00:16.5]} 27. Qxg5 {[%clk 0:00:08.2]} 27... Rxg5 {[%clk 0:00:14.2]} 28. Nf4 {[%clk 0:00:07]} 28... cxd6 {[%clk 0:00:12.6]} 29. Nxh3 {[%clk 0:00:06]} 29... Rg6 {[%clk 0:00:10.5]} 30. cxd6 {[%clk 0:00:04.3]} 30... Rd8 {[%clk 0:00:08.8]} 31. Rxb7 {[%clk 0:00:03.3]} 31... Rxd6 {[%clk 0:00:08.1]} 32. Rb8+ {[%clk 0:00:02.5]} 32... Kg7 {[%clk 0:00:07.8]} 33. Nf4 {[%clk 0:00:01.6]} 33... Rg4 {[%clk 0:00:05.1]} 34. Nh5+ {[%clk 0:00:00.5]} 34... Kg6 {[%clk 0:00:03.5]} 0-1

[Event "Live Chess"]
[Site "Chess.com"]
[Date "2010.12.10"]
[Round "-"]
[White "hipposcottimus"]
[Black "jcodygray"]
[Result "1-0"]
[CurrentPosition "k1Q4N/p1p3pp/2P5/8/N7/8/PPP3PP/2KR3R b - -"]
[Timezone "UTC"]
[ECO "C00"]
[ECOUrl "https://www.chess.com/openings/French-Defense-Steinitz-Attack"]
[UTCDate "2010.12.10"]
[UTCTime "22:04:57"]
[WhiteElo "1676"]
[BlackElo "1600"]
[TimeControl "60"]
[Termination "hipposcottimus won by checkmate"]
[StartTime "22:04:57"]
[EndDate "2010.12.10"]
[EndTime "22:06:11"]
[Link "https://www.chess.com/game/live/76035611"]

1. e4 {[%clk 0:01:00]} 1... e6 {[%clk 0:01:00]} 2. e5 {[%clk 0:00:59.7]} 2... Ne7 {[%clk 0:00:59.3]} 3. d4 {[%clk 0:00:59.1]} 3... d6 {[%clk 0:00:58.9]} 4. f4 {[%clk 0:00:58.8]} 4... dxe5 {[%clk 0:00:58.4]} 5. fxe5 {[%clk 0:00:58.5]} 5... f6 {[%clk 0:00:58.4]} 6. Nf3 {[%clk 0:00:58.3]} 6... fxe5 {[%clk 0:00:56.9]} 7. Nxe5 {[%clk 0:00:57]} 7... Ng6 {[%clk 0:00:56.1]} 8. Qh5 {[%clk 0:00:56]} 8... Qf6 {[%clk 0:00:51.4]} 9. Bg5 {[%clk 0:00:51.6]} 9... Qf5 {[%clk 0:00:44]} 10. Bd3 {[%clk 0:00:50.9]} 10... Qe4+ {[%clk 0:00:40.6]} 11. Bxe4 {[%clk 0:00:49.3]} 11... Nc6 {[%clk 0:00:39.3]} 12. Nxg6 {[%clk 0:00:47.2]} 12... Be7 {[%clk 0:00:35.3]} 13. Nxh8+ {[%clk 0:00:44.8]} 13... Kd7 {[%clk 0:00:34.3]} 14. Bxc6+ {[%clk 0:00:43.3]} 14... bxc6 {[%clk 0:00:33.2]} 15. Bxe7 {[%clk 0:00:42.4]} 15... Kxe7 {[%clk 0:00:33.2]} 16. Qf7+ {[%clk 0:00:41.1]} 16... Kd6 {[%clk 0:00:33.2]} 17. Nc3 {[%clk 0:00:39.2]} 17... Ba6 {[%clk 0:00:33.2]} 18. O-O-O {[%clk 0:00:36.3]} 18... c5 {[%clk 0:00:33.2]} 19. dxc5+ {[%clk 0:00:35.1]} 19... Kc6 {[%clk 0:00:33.2]} 20. Qxe6+ {[%clk 0:00:34.3]} 20... Kb7 {[%clk 0:00:31.2]} 21. Na4 {[%clk 0:00:33.2]} 21... Re8 {[%clk 0:00:29.7]} 22. c6+ {[%clk 0:00:32.4]} 22... Ka8 {[%clk 0:00:27.3]} 23. Qxe8+ {[%clk 0:00:31.9]} 23... Bc8 {[%clk 0:00:27]} 24. Qxc8# {[%clk 0:00:31.2]} 1-0

[Event "Live Chess"]
[Site "Chess.com"]
[Date "2010.12.10"]
[Round "-"]
[White "jcodygray"]
[Black "hipposcottimus"]
[Result "1-0"]
[CurrentPosition "rR6/P2b2pp/1K4k1/8/1P6/8/2P5/8 b - -"]
[Timezone "UTC"]
[ECO "A00"]
[ECOUrl "https://www.chess.com/openings/Vant-Kruijs-Opening-1...e5"]
[UTCDate "2010.12.10"]
[UTCTime "22:02:58"]
[WhiteElo "1607"]
[BlackElo "1669"]
[TimeControl "60"]
[Termination "jcodygray won on time"]
[StartTime "22:02:58"]
[EndDate "2010.12.10"]
[EndTime "22:04:49"]
[Link "https://www.chess.com/game/live/76035008"]

1. e3 {[%clk 0:01:00]} 1... e5 {[%clk 0:01:00]} 2. Ne2 {[%clk 0:01:00]} 2... d5 {[%clk 0:00:59.5]} 3. Rg1 {[%clk 0:01:00]} 3... f5 {[%clk 0:00:58.2]} 4. g3 {[%clk 0:01:00]} 4... Nf6 {[%clk 0:00:56.2]} 5. Bg2 {[%clk 0:01:00]} 5... c5 {[%clk 0:00:54.9]} 6. d3 {[%clk 0:01:00]} 6... e4 {[%clk 0:00:54.1]} 7. Nd2 {[%clk 0:01:00]} 7... c4 {[%clk 0:00:51.9]} 8. dxe4 {[%clk 0:00:59.3]} 8... c3 {[%clk 0:00:49.1]} 9. f3 {[%clk 0:00:59.3]} 9... cxd2+ {[%clk 0:00:47.9]} 10. Qxd2 {[%clk 0:00:58.9]} 10... dxe4 {[%clk 0:00:47.4]} 11. fxe4 {[%clk 0:00:58.2]} 11... Qxd2+ {[%clk 0:00:46.1]} 12. Bxd2 {[%clk 0:00:58.2]} 12... Nxe4 {[%clk 0:00:45.8]} 13. O-O-O {[%clk 0:00:58]} 13... Nf2 {[%clk 0:00:42.8]} 14. Rdf1 {[%clk 0:00:56.3]} 14... Ne4 {[%clk 0:00:37.3]} 15. Nc3 {[%clk 0:00:53.6]} 15... Nxd2 {[%clk 0:00:35.1]} 16. Kxd2 {[%clk 0:00:53]} 16... Bb4 {[%clk 0:00:34.8]} 17. a3 {[%clk 0:00:51.4]} 17... Bxc3+ {[%clk 0:00:34.4]} 18. Kxc3 {[%clk 0:00:51.4]} 18... O-O {[%clk 0:00:32.8]} 19. h4 {[%clk 0:00:50.8]} 19... Nc6 {[%clk 0:00:32.3]} 20. Bh3 {[%clk 0:00:50.3]} 20... Be6 {[%clk 0:00:29.6]} 21. g4 {[%clk 0:00:49.6]} 21... Rac8 {[%clk 0:00:28.9]} 22. gxf5 {[%clk 0:00:48.7]} 22... Ne7+ {[%clk 0:00:28.1]} 23. Kb4 {[%clk 0:00:48]} 23... Nxf5 {[%clk 0:00:27.7]} 24. Bxf5 {[%clk 0:00:46.4]} 24... Bxf5 {[%clk 0:00:27.4]} 25. Rg2 {[%clk 0:00:45.3]} 25... Bh3 {[%clk 0:00:25.3]} 26. Rxf8+ {[%clk 0:00:43.4]} 26... Rxf8 {[%clk 0:00:25]} 27. Rd2 {[%clk 0:00:42.6]} 27... Rf3 {[%clk 0:00:20]} 28. Rd3 {[%clk 0:00:40.7]} 28... Bf1 {[%clk 0:00:16.7]} 29. Rc3 {[%clk 0:00:39.1]} 29... Rh3 {[%clk 0:00:15.8]} 30. a4 {[%clk 0:00:38.6]} 30... Rxh4+ {[%clk 0:00:14.4]} 31. Ka3 {[%clk 0:00:38.6]} 31... Bg2 {[%clk 0:00:13.5]} 32. a5 {[%clk 0:00:38.6]} 32... Bd5 {[%clk 0:00:12.5]} 33. b4 {[%clk 0:00:36.2]} 33... Kf7 {[%clk 0:00:12]} 34. a6 {[%clk 0:00:35.2]} 34... b6 {[%clk 0:00:11.7]} 35. Rc7+ {[%clk 0:00:34]} 35... Kg6 {[%clk 0:00:10.1]} 36. Rxa7 {[%clk 0:00:33.8]} 36... Bf7 {[%clk 0:00:09.4]} 37. Rd7 {[%clk 0:00:32.5]} 37... Rh3 {[%clk 0:00:08.1]} 38. a7 {[%clk 0:00:32.4]} 38... Rxe3+ {[%clk 0:00:06.5]} 39. Ka4 {[%clk 0:00:32.4]} 39... Re8 {[%clk 0:00:05.3]} 40. Kb5 {[%clk 0:00:32.4]} 40... Ra8 {[%clk 0:00:04.2]} 41. Kxb6 {[%clk 0:00:31.6]} 41... Be8 {[%clk 0:00:01.7]} 42. Rb7 {[%clk 0:00:31.1]} 42... Bd7 {[%clk 0:00:00.3]} 43. Rb8 {[%clk 0:00:30.7]} 1-0

[Event "Live Chess"]
[Site "Chess.com"]
[Date "2010.12.10"]
[Round "-"]
[White "hipposcottimus"]
[Black "jcodygray"]
[Result "0-1"]
[CurrentPosition "8/8/8/2p5/6k1/8/3K4/7q w - -"]
[Timezone "UTC"]
[ECO "C00"]
[ECOUrl "https://www.chess.com/openings/French-Defense-Knight-Variation"]
[UTCDate "2010.12.10"]
[UTCTime "22:00:21"]
[WhiteElo "1678"]
[BlackElo "1596"]
[TimeControl "60"]
[Termination "jcodygray won on time"]
[StartTime "22:00:21"]
[EndDate "2010.12.10"]
[EndTime "22:02:42"]
[Link "https://www.chess.com/game/live/76034382"]

1. e4 {[%clk 0:01:00]} 1... e6 {[%clk 0:01:00]} 2. Nf3 {[%clk 0:00:59.5]} 2... Ne7 {[%clk 0:01:00]} 3. e5 {[%clk 0:00:59.2]} 3... Rg8 {[%clk 0:00:59.7]} 4. d4 {[%clk 0:00:58.9]} 4... g6 {[%clk 0:00:59.1]} 5. c4 {[%clk 0:00:58.2]} 5... Bg7 {[%clk 0:00:59.1]} 6. Nc3 {[%clk 0:00:57.7]} 6... d6 {[%clk 0:00:59.1]} 7. Bf4 {[%clk 0:00:55.5]} 7... dxe5 {[%clk 0:00:58.4]} 8. dxe5 {[%clk 0:00:54.8]} 8... f6 {[%clk 0:00:58.4]} 9. Qxd8+ {[%clk 0:00:53.2]} 9... Kxd8 {[%clk 0:00:57.4]} 10. Rd1+ {[%clk 0:00:53]} 10... Ke8 {[%clk 0:00:56.4]} 11. c5 {[%clk 0:00:52.5]} 11... fxe5 {[%clk 0:00:55.8]} 12. Bxe5 {[%clk 0:00:50.4]} 12... Bxe5 {[%clk 0:00:54.6]} 13. Nxe5 {[%clk 0:00:50.1]} 13... Nf5 {[%clk 0:00:54.4]} 14. Bb5+ {[%clk 0:00:49.5]} 14... c6 {[%clk 0:00:53.4]} 15. Ba4 {[%clk 0:00:49.2]} 15... Na6 {[%clk 0:00:52.4]} 16. Bb3 {[%clk 0:00:48.7]} 16... Nxc5 {[%clk 0:00:51.9]} 17. O-O {[%clk 0:00:41.6]} 17... Nxb3 {[%clk 0:00:50.6]} 18. axb3 {[%clk 0:00:41.4]} 18... b5 {[%clk 0:00:50.1]} 19. Ne4 {[%clk 0:00:40.8]} 19... Ba6 {[%clk 0:00:49.1]} 20. Nc5 {[%clk 0:00:40.2]} 20... Bc8 {[%clk 0:00:47]} 21. g4 {[%clk 0:00:35.2]} 21... Ng7 {[%clk 0:00:45.8]} 22. f4 {[%clk 0:00:34.9]} 22... Ke7 {[%clk 0:00:44.9]} 23. f5 {[%clk 0:00:34.6]} 23... exf5 {[%clk 0:00:43.9]} 24. gxf5 {[%clk 0:00:34.1]} 24... gxf5 {[%clk 0:00:43.5]} 25. Rde1 {[%clk 0:00:33.2]} 25... Kf6 {[%clk 0:00:42.9]} 26. Ng4+ {[%clk 0:00:30.8]} 26... Kf7 {[%clk 0:00:39.5]} 27. Ne5+ {[%clk 0:00:29.5]} 27... Kf6 {[%clk 0:00:38.5]} 28. Ned7+ {[%clk 0:00:28.7]} 28... Bxd7 {[%clk 0:00:36.5]} 29. Nxd7+ {[%clk 0:00:28.4]} 29... Kf7 {[%clk 0:00:35.4]} 30. Ne5+ {[%clk 0:00:28.1]} 30... Kf6 {[%clk 0:00:34.5]} 31. Ng4+ {[%clk 0:00:25.7]} 31... Kf7 {[%clk 0:00:33.5]} 32. Nf2 {[%clk 0:00:25.4]} 32... Nh5+ {[%clk 0:00:32.6]} 33. Ng4 {[%clk 0:00:24.9]} 33... Rxg4+ {[%clk 0:00:31]} 34. Kh1 {[%clk 0:00:23.6]} 34... Rb4 {[%clk 0:00:30.1]} 35. Rxf5+ {[%clk 0:00:22.8]} 35... Kg6 {[%clk 0:00:28.8]} 36. Ref1 {[%clk 0:00:21.2]} 36... Rxb3 {[%clk 0:00:27.7]} 37. R5f2 {[%clk 0:00:20.1]} 37... a5 {[%clk 0:00:26]} 38. Rg1+ {[%clk 0:00:19.7]} 38... Kh6 {[%clk 0:00:25.1]} 39. Rf5 {[%clk 0:00:18]} 39... Ng7 {[%clk 0:00:23.3]} 40. Rf6+ {[%clk 0:00:16]} 40... Kh5 {[%clk 0:00:18.9]} 41. Rg3 {[%clk 0:00:15.5]} 41... Rxg3 {[%clk 0:00:16.6]} 42. hxg3 {[%clk 0:00:13.1]} 42... Re8 {[%clk 0:00:16.3]} 43. Rf4 {[%clk 0:00:12.7]} 43... Re1+ {[%clk 0:00:15.3]} 44. Kg2 {[%clk 0:00:12.5]} 44... Re2+ {[%clk 0:00:13.9]} 45. Kf3 {[%clk 0:00:11.9]} 45... Rh2 {[%clk 0:00:12.9]} 46. Rh4+ {[%clk 0:00:10.4]} 46... Rxh4 {[%clk 0:00:11.3]} 47. gxh4 {[%clk 0:00:10.2]} 47... Kxh4 {[%clk 0:00:11.1]} 48. Kf4 {[%clk 0:00:09.7]} 48... h5 {[%clk 0:00:11.1]} 49. Ke3 {[%clk 0:00:09.5]} 49... Ne6 {[%clk 0:00:10.6]} 50. Kf2 {[%clk 0:00:09.2]} 50... Nd4 {[%clk 0:00:10.1]} 51. Ke3 {[%clk 0:00:08.3]} 51... a4 {[%clk 0:00:09.8]} 52. Kxd4 {[%clk 0:00:07.9]} 52... b4 {[%clk 0:00:09.3]} 53. Kc4 {[%clk 0:00:06.5]} 53... a3 {[%clk 0:00:08.9]} 54. bxa3 {[%clk 0:00:06]} 54... bxa3 {[%clk 0:00:08.2]} 55. Kb3 {[%clk 0:00:05.8]} 55... a2 {[%clk 0:00:08]} 56. Kxa2 {[%clk 0:00:05.3]} 56... Kg4 {[%clk 0:00:07.3]} 57. Kb3 {[%clk 0:00:05]} 57... h4 {[%clk 0:00:07.3]} 58. Kc2 {[%clk 0:00:04.7]} 58... h3 {[%clk 0:00:07.3]} 59. Kd3 {[%clk 0:00:04.4]} 59... h2 {[%clk 0:00:07.3]} 60. Ke3 {[%clk 0:00:04.1]} 60... h1=Q {[%clk 0:00:07.3]} 61. Kd2 {[%clk 0:00:02.4]} 61... c5 {[%clk 0:00:07.3]} 0-1

[Event "Live Chess"]
[Site "Chess.com"]
[Date "2010.12.10"]
[Round "-"]
[White "hipposcottimus"]
[Black "TigerPop"]
[Result "1-0"]
[CurrentPosition "r4rk1/b5p1/Pqp1P1nN/3p1b2/B7/2N3Q1/1PP2nPP/R1B1RK2 b - -"]
[Timezone "UTC"]
[ECO "C40"]
[ECOUrl "https://www.chess.com/openings/Kings-Pawn-Opening-Latvian-Mayet-Strautins-Gambit"]
[UTCDate "2010.12.10"]
[UTCTime "21:57:30"]
[WhiteElo "1687"]
[BlackElo "1559"]
[TimeControl "60"]
[Termination "hipposcottimus won on time"]
[StartTime "21:57:30"]
[EndDate "2010.12.10"]
[EndTime "21:59:23"]
[Link "https://www.chess.com/game/live/76033533"]

1. e4 {[%clk 0:01:00]} 1... e5 {[%clk 0:01:00]} 2. Nf3 {[%clk 0:00:59.7]} 2... f5 {[%clk 0:01:00]} 3. Bc4 {[%clk 0:00:59.4]} 3... b5 {[%clk 0:00:58.7]} 4. Bd5 {[%clk 0:00:54.7]} 4... c6 {[%clk 0:00:57.4]} 5. Bb3 {[%clk 0:00:53.6]} 5... d6 {[%clk 0:00:56.1]} 6. exf5 {[%clk 0:00:52.3]} 6... Bxf5 {[%clk 0:00:55.2]} 7. d3 {[%clk 0:00:52]} 7... d5 {[%clk 0:00:54.6]} 8. O-O {[%clk 0:00:51.6]} 8... Bc5 {[%clk 0:00:53.1]} 9. Re1 {[%clk 0:00:50.9]} 9... Nd7 {[%clk 0:00:50.9]} 10. d4 {[%clk 0:00:50.5]} 10... Bb6 {[%clk 0:00:47.3]} 11. dxe5 {[%clk 0:00:50.2]} 11... Be6 {[%clk 0:00:45.3]} 12. a4 {[%clk 0:00:44.8]} 12... a6 {[%clk 0:00:42.7]} 13. axb5 {[%clk 0:00:42.8]} 13... Ne7 {[%clk 0:00:41.7]} 14. bxa6 {[%clk 0:00:40.5]} 14... Ba7 {[%clk 0:00:38.9]} 15. Ba4 {[%clk 0:00:38.8]} 15... O-O {[%clk 0:00:36.4]} 16. Ng5 {[%clk 0:00:34.9]} 16... Bf5 {[%clk 0:00:28.6]} 17. e6 {[%clk 0:00:30.7]} 17... Nf6 {[%clk 0:00:26.3]} 18. Nc3 {[%clk 0:00:28.3]} 18... h6 {[%clk 0:00:20.8]} 19. Nf7 {[%clk 0:00:25.9]} 19... Qb6 {[%clk 0:00:16.6]} 20. Qf3 {[%clk 0:00:22.3]} 20... Ng4 {[%clk 0:00:13]} 21. Qg3 {[%clk 0:00:22]} 21... Nxf2 {[%clk 0:00:10.5]} 22. Kf1 {[%clk 0:00:21.5]} 22... Ng6 {[%clk 0:00:01.1]} 23. Nxh6+ {[%clk 0:00:17.2]} 1-0